bitfinex/quotes_BTCUSD_20221001
["timestamp","ask_amount","ask_price","bid_price","bid_amount"]
[1664622430118,1.033415,19352.0,19351.0,0.05]
[1664622431371,1.098415,19352.0,19351.0,0.05]
[1664622432783,1.033415,19352.0,19351.0,0.05]
[1664622433429,1.098415,19352.0,19351.0,0.05]
[1664622434791,1.033415,19352.0,19351.0,0.05]
[1664622435385,1.033415,19352.0,19351.0,0.068]
[1664622436296,1.033415,19352.0,19351.0,0.15182714]
[1664622436732,1.033415,19352.0,19351.0,0.05]
[1664622437342,1.033415,19352.0,19351.0,0.56173144]
[1664622437343,0.387564,19352.0,19351.0,0.56173144]
[1664622437596,0.387564,19352.0,19351.0,0.57973144]
[1664622437955,0.387564,19352.0,19351.0,0.97644754]
[1664622438201,0.387564,19352.0,19351.0,0.57973144]
[1664622438822,0.387564,19352.0,19351.0,0.95844754]
[1664622439492,0.416564,19352.0,19351.0,0.58773144]
[1664622440886,0.387564,19352.0,19351.0,0.51173144]
[1664622441326,0.387564,19352.0,19351.0,0.90844754]
[1664622441551,0.387564,19352.0,19351.0,0.58873144]
[1664622442477,0.386586,19352.0,19351.0,0.58873144]
[1664622442693,0.386586,19352.0,19351.0,0.51173144]
[1664622443614,0.386586,19352.0,19351.0,0.58873144]
[1664622444489,0.686586,19352.0,19351.0,0.58873144]
[1664622444719,0.686586,19352.0,19351.0,0.51173144]
[1664622445407,0.386586,19352.0,19351.0,0.51173144]
[1664622445629,0.386586,19352.0,19351.0,0.58873144]
[1664622446658,1.203328,19352.0,19351.0,0.58873144]
[1664622446898,1.203328,19352.0,19351.0,0.51173144]
[1664622447606,1.203328,19352.0,19351.0,0.58873144]
[1664622448953,1.203328,19352.0,19351.0,0.51173144]
[1664622449401,0.903328,19352.0,19351.0,0.51173144]
[1664622449619,0.903328,19352.0,19351.0,0.58873144]
[1664622449844,1.203328,19352.0,19351.0,0.58873144]
[1664622451121,1.203328,19352.0,19351.0,0.51173144]
[1664622451122,0.903328,19352.0,19351.0,0.51173144]
[1664622451341,1.203328,19352.0,19351.0,0.51173144]
[1664622451551,1.203328,19352.0,19351.0,0.58873144]
[1664622452798,0.903328,19352.0,19351.0,0.51173144]
[1664622453022,1.203328,19352.0,19351.0,0.51173144]
[1664622453247,0.903328,19352.0,19351.0,0.51173144]
[1664622453779,0.903328,19352.0,19351.0,0.58873144]
[1664622454174,1.203328,19352.0,19351.0,0.58873144]
[1664622454856,0.903328,19352.0,19351.0,0.51173144]
[1664622455006,1.203328,19352.0,19351.0,0.51173144]
[1664622455446,1.203328,19352.0,19351.0,0.58873144]
[1664622456374,1.203328,19352.0,19351.0,0.98544754]
[1664622456589,0.903328,19352.0,19351.0,0.98544754]
[1664622456772,0.903328,19352.0,19351.0,0.58873144]
[1664622457287,0.903328,19352.0,19351.0,0.51173144]
[1664622457486,0.903328,19352.0,19351.0,0.58873144]
[1664622458759,0.903328,19352.0,19351.0,0.51173144]
[1664622459564,0.903328,19352.0,19351.0,0.58873144]
[1664622460892,0.903328,19352.0,19351.0,1.04577319]
[1664622461194,0.903328,19352.0,19351.0,1.40396819]
[1664622461648,0.903328,19352.0,19351.0,1.12377319]
[1664622461869,0.903328,19352.0,19351.0,0.58973144]
[1664622462976,0.903328,19352.0,19351.0,0.51173144]
[1664622463656,0.903328,19352.0,19351.0,0.58973144]
[1664622464956,0.903328,19352.0,19351.0,0.51173144]
[1664622465174,0.903328,19352.0,19351.0,0.90844754]
[1664622465713,0.903328,19352.0,19351.0,0.58973144]
[1664622466948,0.903328,19352.0,19351.0,0.90844754]
[1664622467380,0.903328,19352.0,19351.0,0.51173144]
[1664622467637,0.903328,19352.0,19351.0,0.58973144]
[1664622468478,0.903328,19352.0,19351.0,0.98644754]
[1664622468930,0.903328,19352.0,19351.0,0.90844754]
[1664622469360,0.903328,19352.0,19351.0,0.51173144]
[1664622469508,0.903328,19352.0,19351.0,0.58973144]
[1664622469943,0.903328,19352.0,19351.0,0.98644754]
[1664622470150,0.903328,19352.0,19351.0,0.58973144]
[1664622470794,0.903328,19352.0,19351.0,0.51173144]
[1664622471617,0.903328,19352.0,19351.0,0.58973144]
[1664622472054,0.903328,19352.0,19351.0,0.98644754]
[1664622472957,0.903328,19352.0,19351.0,0.51173144]
[1664622473170,0.903328,19352.0,19351.0,0.90844754]
[1664622473608,0.903328,19352.0,19351.0,0.98544754]
[1664622473855,0.903328,19352.0,19351.0,0.58873144]
[1664622473978,0.903328,19352.0,19351.0,0.98544754]
[1664622474373,0.903328,19352.0,19351.0,0.58873144]
[1664622474632,0.903328,19352.0,19351.0,0.98544754]
[1664622474839,0.903328,19352.0,19351.0,0.90844754]
[1664622475704,0.903328,19352.0,19351.0,0.98544754]
[1664622476077,0.903328,19352.0,19351.0,0.58873144]
[1664622476742,0.903328,19352.0,19351.0,0.98544754]
[1664622476955,0.903328,19352.0,19351.0,0.51173144]
[1664622477119,0.903328,19352.0,19351.0,0.90844754]
[1664622477545,0.903328,19352.0,19351.0,0.98544754]
[1664622478882,0.903328,19352.0,19351.0,0.95844754]
[1664622479062,0.775119,19352.0,19351.0,0.95844754]
[1664622479298,0.775119,19352.0,19351.0,1.21697154]
[1664622479550,0.904263,19353.0,19351.0,1.29397154]
[1664622479761,0.904263,19353.0,19352.0,0.51173144]
[1664622479762,0.387541,19353.0,19352.0,0.51173144]
[1664622480606,0.904283,19353.0,19352.0,0.51173144]
[1664622481686,0.904283,19353.0,19352.0,0.52973144]
[1664622482986,0.904283,19353.0,19352.0,0.51173144]
[1664622483591,0.904283,19353.0,19352.0,0.52973144]
[1664622484865,0.904283,19353.0,19352.0,0.51173144]
[1664622485689,0.924283,19353.0,19352.0,0.58873144]
[1664622486990,0.904283,19353.0,19352.0,0.51173144]
[1664622487778,0.924283,19353.0,19352.0,0.58873144]
[1664622489083,0.904283,19353.0,19352.0,0.51173144]
[1664622489784,0.904283,19353.0,19352.0,0.58973144]
[1664622490988,0.904283,19353.0,19352.0,0.51173144]
[1664622491886,0.904283,19353.0,19352.0,0.58973144]
[1664622492993,0.904283,19353.0,19352.0,0.51173144]
[1664622493189,0.904283,19353.0,19352.0,0.90844754]
[1664622493322,0.904283,19353.0,19352.0,0.51173144]
[1664622493555,0.387541,19353.0,19352.0,0.90844754]
[1664622493781,0.387541,19353.0,19352.0,0.98644754]
[1664622494213,0.387541,19353.0,19352.0,1.03644754]
[1664622494459,0.387541,19353.0,19352.0,0.98644754]
[1664622494881,0.387541,19353.0,19352.0,0.90844754]
[1664622495724,0.387541,19353.0,19352.0,0.98644754]
[1664622496835,0.387541,19353.0,19352.0,1.35069573]
[1664622497057,0.904217,19354.0,19352.0,1.00844754]
[1664622497271,0.129086,19355.0,19354.0,0.05]
[1664622497516,0.646738,19356.0,19355.0,0.05]
[1664622497729,0.646738,19356.0,19353.0,0.64097844]
[1664622497730,0.130077,19356.0,19353.0,0.64097844]
[1664622497861,0.130077,19356.0,19355.0,0.05]
[1664622498077,0.646738,19356.0,19355.0,0.05]
[1664622498297,0.388475,19356.0,19355.0,0.05]
[1664622498517,0.388475,19356.0,19354.0,0.129242]
[1664622498734,0.905136,19356.0,19354.0,0.129242]
[1664622499426,0.905136,19356.0,19355.0,0.05]
[1664622499633,1.273136,19356.0,19355.0,0.05]
[1664622499830,0.973136,19356.0,19354.0,0.258484]
[1664622500512,0.973136,19356.0,19355.0,0.05]
[1664622500954,0.905136,19356.0,19355.0,0.05]
[1664622501467,0.905136,19356.0,19354.0,0.77021544]
[1664622501939,0.954136,19356.0,19354.0,0.77021544]
[1664622502973,0.905136,19356.0,19354.0,0.77021544]
[1664622503616,0.905136,19356.0,19355.0,0.05]
[1664622503826,0.905136,19356.0,19355.0,0.56173144]
[1664622503827,1.235136,19356.0,19355.0,0.56173144]
[1664622504034,1.235136,19356.0,19355.0,0.51173144]
[1664622505164,1.205136,19356.0,19355.0,0.51173144]
[1664622505799,1.208136,19356.0,19355.0,0.55573144]
[1664622507014,1.205136,19356.0,19355.0,0.51173144]
[1664622507667,1.208136,19356.0,19355.0,0.55573144]
[1664622509074,1.205136,19356.0,19355.0,0.51173144]
[1664622509771,1.208136,19356.0,19355.0,0.55573144]
[1664622511141,1.205136,19356.0,19355.0,0.51173144]
[1664622511819,1.205136,19356.0,19355.0,0.55573144]
[1664622511820,1.208136,19356.0,19355.0,0.55573144]
[1664622513176,1.208136,19356.0,19355.0,0.51173144]
[1664622513409,1.205136,19356.0,19355.0,0.51173144]
[1664622513859,1.208136,19356.0,19355.0,0.55573144]
[1664622514084,1.208136,19356.0,19355.0,0.044]
[1664622514311,1.52547354,19356.0,19355.0,0.044]
[1664622514784,1.56598958,19356.0,19355.0,0.044]
[1664622515239,1.56298958,19356.0,19354.0,0.129242]
[1664622515483,0.34051706,19355.0,19354.0,0.129242]
[1664622515697,0.41045412,19355.0,19353.0,0.129251]
[1664622515982,0.36993706,19355.0,19354.0,0.077]
[1664622516445,1.27411006,19355.0,19354.0,0.077]
[1664622516894,1.31462712,19355.0,19354.0,0.077]
[1664622517103,1.31462712,19355.0,19353.0,0.129251]
[1664622517323,0.07619252,19354.0,19353.0,0.258502]
[1664622517555,0.07619252,19354.0,19353.0,0.129251]
[1664622517774,0.07619252,19354.0,19353.0,0.207251]
[1664622518002,1.31462712,19355.0,19353.0,0.207251]
[1664622518684,0.12446901,19354.0,19353.0,0.207251]
[1664622518910,0.12446901,19354.0,19353.0,0.078]
[1664622519135,1.23734287,19354.0,19352.0,0.229256]
[1664622519369,0.37619252,19353.0,19352.0,0.229256]
[1664622519592,0.3,19353.0,19352.0,0.229256]
[1664622519857,0.3,19353.0,19352.0,0.307256]
[1664622521238,0.3,19353.0,19352.0,0.229256]
[1664622521873,0.3,19353.0,19352.0,0.307256]
[1664622522524,0.44128739,19353.0,19352.0,0.30717308]
[1664622523194,0.44128739,19353.0,19352.0,0.22917308]
[1664622523763,0.44128739,19353.0,19352.0,0.30717308]
[1664622525207,0.44128739,19353.0,19352.0,0.22917308]
[1664622525625,0.3,19353.0,19352.0,0.22917308]
[1664622525846,0.3,19353.0,19352.0,0.30717308]
[1664622527196,0.3,19353.0,19352.0,0.22917308]
[1664622527921,0.3,19353.0,19352.0,0.30717308]
[1664622529189,0.3,19353.0,19352.0,0.22917308]
[1664622529991,0.3,19353.0,19352.0,0.30717308]
[1664622530226,0.44128739,19353.0,19352.0,0.30717308]
[1664622531179,0.44128739,19353.0,19352.0,0.22917308]
[1664622531960,0.44128739,19353.0,19352.0,0.30717308]
[1664622533229,0.44128739,19353.0,19352.0,0.22917308]
[1664622533882,0.44128739,19353.0,19352.0,0.30717308]
[1664622535244,0.44128739,19353.0,19352.0,0.22917308]
[1664622535913,0.3,19353.0,19352.0,0.30717308]
[1664622536580,0.29993825,19353.0,19352.0,0.30717308]
[1664622537265,0.29993825,19353.0,19352.0,0.22917308]
[1664622537997,0.29993825,19353.0,19352.0,0.30717308]
[1664622539351,0.29993825,19353.0,19352.0,0.22917308]
[1664622539983,0.29993825,19353.0,19352.0,0.30717308]
[1664622541356,0.29993825,19353.0,19352.0,0.22917308]
[1664622542015,0.29993825,19353.0,19352.0,0.30717308]
[1664622543194,0.29993825,19353.0,19352.0,0.22917308]
[1664622544113,0.29993825,19353.0,19352.0,0.30717308]
[1664622545217,0.29993825,19353.0,19352.0,0.22917308]
[1664622546079,0.29993825,19353.0,19352.0,0.30717308]
[1664622546296,0.44121946,19353.0,19352.0,0.30717308]
[1664622547204,0.44121946,19353.0,19352.0,0.22917308]
[1664622547430,0.29993825,19353.0,19352.0,0.22917308]
[1664622547886,0.29993825,19353.0,19352.0,0.30717308]
[1664622549078,0.29993825,19353.0,19352.0,0.22917308]
[1664622549982,0.29993825,19353.0,19352.0,0.30717308]
[1664622551220,0.29993825,19353.0,19352.0,0.22917308]
[1664622552106,0.29993825,19353.0,19352.0,0.30717308]
[1664622552107,0.32693825,19353.0,19352.0,0.30717308]
[1664622553230,0.29993825,19353.0,19352.0,0.22917308]
[1664622554043,0.32693825,19353.0,19352.0,0.30717308]
[1664622555330,0.29993825,19353.0,19352.0,0.22917308]
[1664622555973,0.32693825,19353.0,19352.0,0.30717308]
[1664622557313,0.29993825,19353.0,19352.0,0.22917308]
[1664622557811,0.29993825,19353.0,19352.0,0.22906107]
[1664622558023,0.32693825,19353.0,19352.0,0.30706107]
[1664622559558,0.29993825,19353.0,19352.0,0.22906107]
[1664622559984,0.32693825,19353.0,19352.0,0.30706107]
[1664622561299,0.34045531,19353.0,19352.0,0.22906107]
[1664622561887,0.34045531,19353.0,19352.0,0.30706107]
[1664622561888,0.36745531,19353.0,19352.0,0.30706107]
[1664622562098,0.32693825,19353.0,19352.0,0.30706107]
[1664622563288,0.29993825,19353.0,19352.0,0.22906107]
[1664622563871,0.32693825,19353.0,19352.0,0.30706107]
[1664622565195,0.29993825,19353.0,19352.0,0.22906107]
[1664622566053,0.32593825,19353.0,19352.0,0.30606107]
[1664622566951,0.026,19353.0,19352.0,0.30606107]
[1664622567175,1.15339092,19354.0,19352.0,0.22906107]
[1664622567399,1.15339092,19354.0,19352.0,0.35831907]
[1664622568119,1.17939092,19354.0,19352.0,0.43531907]
[1664622569064,0.37619252,19353.0,19352.0,0.43531907]
[1664622569274,0.3,19353.0,19352.0,0.22906107]
[1664622570084,0.326,19353.0,19352.0,0.30606107]
[1664622571219,0.3,19353.0,19352.0,0.22906107]
[1664622572097,0.326,19353.0,19352.0,0.30606107]
[1664622573301,0.3,19353.0,19352.0,0.22906107]
[1664622574108,0.326,19353.0,19352.0,0.30606107]
[1664622575519,0.3,19353.0,19352.0,0.22906107]
[1664622576204,0.326,19353.0,19352.0,0.30606107]
[1664622577315,0.3,19353.0,19352.0,0.22906107]
[1664622578233,0.326,19353.0,19352.0,0.30606107]
[1664622579351,0.3,19353.0,19352.0,0.22906107]
[1664622580236,0.326,19353.0,19352.0,0.30606107]
[1664622581331,0.3,19353.0,19352.0,0.22906107]
[1664622582249,0.326,19353.0,19352.0,0.30606107]
[1664622582476,0.326,19353.0,19352.0,0.30597283]
[1664622583423,0.3,19353.0,19352.0,0.22897283]
[1664622584141,0.326,19353.0,19352.0,0.30597283]
[1664622585330,0.3,19353.0,19352.0,0.22897283]
[1664622586121,0.326,19353.0,19352.0,0.30597283]
[1664622587341,0.3,19353.0,19352.0,0.22897283]
[1664622588225,0.327,19353.0,19352.0,0.30697283]
[1664622589262,0.29988026,19353.0,19352.0,0.22897283]
[1664622590087,0.32688026,19353.0,19352.0,0.30697283]
[1664622591404,0.29988026,19353.0,19352.0,0.22897283]
[1664622591879,0.29988026,19353.0,19352.0,0.09971683]
[1664622591880,0.55257644,19353.0,19352.0,0.09971683]
[1664622592102,0.62009211,19353.0,19352.0,0.17771683]
[1664622593053,0.57958852,19353.0,19352.0,0.17771683]
[1664622593502,0.51205938,19353.0,19352.0,0.09971683]
[1664622593725,0.55258839,19353.0,19352.0,0.09971683]
[1664622594163,0.52805938,19353.0,19352.0,0.17571683]
[1664622594879,0.56858848,19353.0,19352.0,0.17571683]
[1664622595094,0.60909211,19353.0,19352.0,0.17571683]
[1664622595306,0.60909211,19353.0,19352.0,0.09971683]
[1664622595523,0.59309211,19353.0,19352.0,0.09971683]
[1664622596233,0.59309211,19353.0,19352.0,0.17571683]
[1664622596700,0.51205938,19353.0,19352.0,0.17571683]
[1664622596933,0.59309211,19353.0,19352.0,0.17571683]
[1664622597073,0.51205938,19353.0,19352.0,0.17571683]
[1664622597307,0.51205938,19353.0,19352.0,0.09971683]
[1664622598378,0.59309211,19353.0,19352.0,0.17571683]
[1664622599925,0.55258204,19353.0,19352.0,0.09971683]
[1664622600177,0.55258204,19353.0,19352.0,0.17571683]
[1664622600406,0.55258127,19353.0,19352.0,0.17571683]
[1664622600626,0.59309211,19353.0,19352.0,0.17571683]
[1664622600882,0.51205938,19353.0,19352.0,0.17571683]
[1664622601101,0.59309211,19353.0,19352.0,0.17571683]
[1664622601317,0.59309211,19353.0,19352.0,0.076]
[1664622601530,1.49734211,19353.0,19351.0,0.129262]
[1664622601757,0.11671469,19352.0,19350.0,0.129269]
[1664622602004,0.98050252,19352.0,19350.0,0.129269]
[1664622602225,0.37619252,19351.0,19350.0,0.129269]
[1664622602463,0.3,19351.0,19349.0,0.129276]
[1664622603406,0.59873217,19352.0,19349.0,0.129276]
[1664622603619,0.904355,19351.0,19349.0,0.129276]
[1664622603856,0.37619252,19350.0,19349.0,0.129276]
[1664622604281,0.37619252,19350.0,19349.0,0.208276]
[1664622604726,0.3,19350.0,19349.0,0.208276]
[1664622605580,0.3,19350.0,19349.0,0.129276]
[1664622606344,0.3,19350.0,19349.0,0.196276]
[1664622607663,0.3,19350.0,19349.0,0.129276]
[1664622608086,0.3,19350.0,19349.0,0.196276]
[1664622608796,1.47619252,19349.0,19346.0,0.3967161]
[1664622608924,0.07619252,19344.0,19342.0,0.04052511]
[1664622609138,0.39307326,19343.0,19342.0,0.51173144]
[1664622609373,0.3,19343.0,19342.0,0.51173144]
[1664622609873,0.687736,19343.0,19342.0,0.51173144]
[1664622610093,0.687736,19343.0,19341.0,0.51173144]
[1664622610308,0.3,19342.0,19340.0,0.51173144]
[1664622610527,0.129256,19342.0,19340.0,0.51173144]
[1664622610749,0.129256,19342.0,19341.0,0.358195]
[1664622611474,0.129256,19342.0,19340.0,0.51173144]
[1664622611702,0.429256,19342.0,19341.0,0.358195]
[1664622611916,0.129256,19342.0,19341.0,0.358195]
[1664622612137,0.192256,19342.0,19340.0,0.51173144]
[1664622612594,0.321424,19342.0,19340.0,0.51173144]
[1664622612716,0.387777,19341.0,19340.0,0.51173144]
[1664622612940,0.387777,19341.0,19340.0,0.86992644]
[1664622613598,0.904813,19341.0,19340.0,0.86992644]
[1664622614256,0.984813,19341.0,19340.0,0.86992644]
[1664622615351,0.904813,19341.0,19340.0,0.86992644]
[1664622615838,1.204813,19341.0,19340.0,0.86992644]
[1664622616066,0.904813,19341.0,19340.0,0.51173144]
[1664622616297,1.282813,19341.0,19340.0,0.86992644]
[1664622616739,1.46163106,19341.0,19340.0,0.358195]
[1664622616953,1.46163106,19341.0,19339.0,0.60255216]
[1664622617229,1.46163106,19341.0,19339.0,1.1142836]
[1664622617413,1.38363106,19341.0,19339.0,1.1142836]
[1664622618124,0.3,19340.0,19339.0,1.1142836]
[1664622618290,0.977813,19341.0,19339.0,0.9849406]
[1664622619627,0.904813,19341.0,19340.0,0.358195]
[1664622619852,1.204813,19341.0,19339.0,0.9849406]
[1664622620057,0.904813,19341.0,19340.0,0.358195]
[1664622620241,0.904813,19341.0,19339.0,0.9849406]
[1664622620242,1.281813,19341.0,19339.0,0.9849406]
[1664622620458,0.981813,19341.0,19339.0,0.9849406]
[1664622621780,0.904813,19341.0,19339.0,0.9849406]
[1664622622238,0.977813,19341.0,19339.0,0.9849406]
[1664622624113,0.904813,19341.0,19339.0,0.9849406]
[1664622624307,0.977813,19341.0,19339.0,0.9849406]
[1664622625586,0.904813,19341.0,19339.0,0.9849406]
[1664622626266,0.977813,19341.0,19339.0,0.9849406]
[1664622627606,0.904813,19341.0,19339.0,0.9849406]
[1664622628223,0.977813,19341.0,19339.0,0.9849406]
[1664622629691,0.904813,19341.0,19339.0,0.9849406]
[1664622630232,0.977813,19341.0,19339.0,0.9849406]
[1664622630675,0.97774899,19341.0,19339.0,0.9849406]
[1664622631594,0.90474899,19341.0,19339.0,0.9849406]
[1664622632169,0.97774899,19341.0,19339.0,0.9849406]
[1664622633603,0.90474899,19341.0,19339.0,0.9849406]
[1664622634072,0.90474899,19341.0,19339.0,1.1142836]
[1664622634189,0.97774899,19341.0,19339.0,1.1142836]
[1664622635522,0.90474899,19341.0,19339.0,1.1142836]
[1664622636440,0.97774899,19341.0,19339.0,1.1142836]
[1664622637770,0.90474899,19341.0,19339.0,1.1142836]
[1664622638366,0.97774899,19341.0,19339.0,1.1142836]
[1664622639523,0.90474899,19341.0,19340.0,0.358195]
[1664622639783,0.90474899,19341.0,19339.0,1.1142836]
[1664622640296,0.97774899,19341.0,19339.0,1.1142836]
[1664622640507,0.97774899,19341.0,19340.0,0.358195]
[1664622640735,0.46071299,19341.0,19340.0,0.91381863]
[1664622640964,0.073,19341.0,19340.0,1.0671743]
[1664622641206,0.073,19341.0,19340.0,1.1171743]
[1664622641673,0.38775,19343.0,19341.0,0.408195]
[1664622641891,0.38775,19343.0,19342.0,0.358195]
[1664622642121,0.38775,19343.0,19341.0,0.25866]
[1664622642394,0.38775,19343.0,19342.0,0.358195]
[1664622642395,0.045,19343.0,19342.0,0.358195]
[1664622642623,0.045,19343.0,19341.0,0.25866]
[1664622642844,0.43275,19343.0,19342.0,0.358195]
[1664622643062,0.43275,19343.0,19341.0,0.25866]
[1664622643293,0.43275,19343.0,19342.0,0.358195]
[1664622643513,0.43275,19343.0,19341.0,0.25866]
[1664622643740,0.38775,19343.0,19341.0,0.25866]
[1664622644026,0.38775,19343.0,19342.0,0.86992644]
[1664622644250,0.38775,19343.0,19342.0,0.51173144]
[1664622644470,0.43275,19343.0,19342.0,0.51173144]
[1664622645562,0.38775,19343.0,19342.0,0.51173144]
[1664622645790,0.258501,19343.0,19342.0,0.56173144]
[1664622646506,0.301501,19343.0,19342.0,0.61173144]
[1664622646726,0.043,19343.0,19342.0,0.61173144]
[1664622646971,0.043,19343.0,19342.0,0.56173144]
[1664622647635,0.904695,19344.0,19342.0,0.56173144]
[1664622647890,0.904695,19344.0,19342.0,0.82037744]
[1664622648327,0.947695,19344.0,19342.0,0.82037744]
[1664622649738,0.904695,19344.0,19343.0,0.05]
[1664622649968,0.904695,19344.0,19342.0,0.93552973]
[1664622649969,0.904695,19344.0,19342.0,0.82037744]
[1664622650416,0.944695,19344.0,19342.0,0.82037744]
[1664622651778,0.904695,19344.0,19342.0,0.82037744]
[1664622652225,0.387729,19344.0,19342.0,0.82037744]
[1664622652447,0.427729,19344.0,19342.0,0.82037744]
[1664622653619,0.387729,19344.0,19342.0,0.82037744]
[1664622653825,0.387729,19344.0,19343.0,0.358195]
[1664622654072,0.387729,19344.0,19342.0,0.82037744]
[1664622654521,0.428729,19344.0,19342.0,0.82037744]
[1664622654951,0.42865059,19344.0,19343.0,0.408195]
[1664622655171,0.42865059,19344.0,19343.0,0.05]
[1664622655425,0.42865059,19344.0,19342.0,0.82037744]
[1664622655633,0.38765059,19344.0,19342.0,0.87693937]
[1664622656575,0.42965059,19344.0,19342.0,0.87693937]
[1664622657219,0.42965059,19344.0,19343.0,0.358195]
[1664622657477,0.42965059,19344.0,19342.0,0.87693937]
[1664622657680,0.38765059,19344.0,19342.0,0.87693937]
[1664622657889,0.38765059,19344.0,19343.0,0.56173144]
[1664622658125,0.38765059,19344.0,19343.0,0.51173144]
[1664622658339,0.42765059,19344.0,19343.0,0.73018295]
[1664622658553,0.16916459,19344.0,19343.0,0.73018295]
[1664622658778,0.16916459,19344.0,19343.0,1.08837795]
[1664622659008,0.42764259,19344.0,19343.0,0.73018295]
[1664622659509,0.42764259,19344.0,19343.0,1.08837795]
[1664622659741,0.38764259,19344.0,19343.0,1.08837795]
[1664622659889,0.38764259,19344.0,19343.0,0.73018295]
[1664622660359,0.42664259,19344.0,19343.0,0.73018295]
[1664622661766,0.38764259,19344.0,19343.0,0.73018295]
[1664622662442,0.42664259,19344.0,19343.0,0.73018295]
[1664622663815,0.38764259,19344.0,19343.0,0.73018295]
[1664622664439,0.42864259,19344.0,19343.0,0.73018295]
[1664622665183,0.42864259,19344.0,19343.0,0.78018295]
[1664622665866,0.38764259,19344.0,19343.0,0.78018295]
[1664622666518,0.42864259,19344.0,19343.0,0.78018295]
[1664622667664,0.38764259,19344.0,19343.0,0.78018295]
[1664622668536,0.42864259,19344.0,19343.0,0.73018295]
[1664622669919,0.38764259,19344.0,19343.0,0.73018295]
[1664622670561,0.42664259,19344.0,19343.0,0.73018295]
[1664622671173,0.42664259,19344.0,19343.0,1.08837795]
[1664622671384,0.42664259,19344.0,19343.0,0.73018295]
[1664622671654,0.38764259,19344.0,19343.0,0.73018295]
[1664622672509,0.42664259,19344.0,19343.0,0.73018295]
[1664622672730,0.42664259,19344.0,19343.0,1.08837795]
[1664622673172,0.42664259,19344.0,19343.0,0.73018295]
[1664622673561,0.94359859,19344.0,19343.0,0.78018295]
[1664622673777,0.90459859,19344.0,19343.0,1.13837795]
[1664622673997,0.90459859,19344.0,19343.0,0.73018295]
[1664622674462,0.94259859,19344.0,19343.0,0.73018295]
[1664622675790,0.90459859,19344.0,19343.0,0.73018295]
[1664622676570,0.94259859,19344.0,19343.0,0.73018295]
[1664622677336,0.94259859,19344.0,19343.0,1.08837795]
[1664622677547,0.90459859,19344.0,19343.0,0.73018295]
[1664622678254,0.90459859,19344.0,19343.0,1.08837795]
[1664622678501,0.94259859,19344.0,19343.0,0.73018295]
[1664622679833,0.90459859,19344.0,19343.0,0.73018295]
[1664622680411,0.94359859,19344.0,19343.0,0.73018295]
[1664622680858,0.00010702,19343.0,19342.0,0.129323]
[1664622681099,0.00010702,19343.0,19341.0,0.129329]
[1664622681100,0.69318028,19343.0,19341.0,0.129329]
[1664622681464,0.58632703,19342.0,19340.0,0.129331]
[1664622681685,0.3,19341.0,19340.0,0.64106244]
[1664622682590,0.344,19341.0,19340.0,0.64106244]
[1664622682802,0.044,19341.0,19340.0,0.64106244]
[1664622683630,1.27408303,19342.0,19340.0,0.64106244]
[1664622683841,1.66715629,19342.0,19340.0,0.64106244]
[1664622684159,1.27408303,19342.0,19340.0,0.64106244]
[1664622684347,0.1204765,19341.0,19340.0,0.64106244]
[1664622686173,0.1204765,19341.0,19340.0,0.64097623]
[1664622686584,0.1644765,19341.0,19340.0,0.64097623]
[1664622687799,0.51354976,19341.0,19340.0,0.12924479]
[1664622688055,0.81354976,19341.0,19340.0,0.12924479]
[1664622688276,0.4204765,19341.0,19340.0,0.12924479]
[1664622688471,0.4644765,19341.0,19340.0,0.12924479]
[1664622688690,0.4644765,19341.0,19339.0,0.229338]
[1664622688906,0.3,19340.0,19339.0,0.74106944]
[1664622689691,1.0252905,19341.0,19339.0,0.74106944]
[1664622690366,0.3,19340.0,19339.0,0.74106944]
[1664622690804,1.0712905,19341.0,19339.0,0.74106944]
[1664622691034,0.37619252,19340.0,19339.0,0.74106944]
[1664622692600,0.346,19340.0,19339.0,0.74106944]
[1664622693030,0.046,19340.0,19339.0,0.74106944]
[1664622693631,0.046,19340.0,19339.0,1.09926444]
[1664622693870,0.904814,19341.0,19339.0,0.74106944]
[1664622694102,0.0904814,19340.0,19339.0,0.74106944]
[1664622694334,0.0904814,19340.0,19337.0,0.359918]
[1664622694335,1.4466573,19340.0,19337.0,0.359918]
[1664622694556,1.4466573,19340.0,19337.0,0.230561]
[1664622694557,1.37417078,19339.0,19337.0,0.230561]
[1664622694779,1.79307326,19338.0,19337.0,0.101206]
[1664622695004,1.93049034,19338.0,19337.0,0.230569]
[1664622695490,0.83049034,19338.0,19337.0,0.230569]
[1664622696642,0.87049034,19338.0,19337.0,0.230569]
[1664622697775,0.83049034,19338.0,19337.0,0.230569]
[1664622698461,0.3,19338.0,19337.0,0.230569]
[1664622698686,0.34,19338.0,19337.0,0.230569]
[1664622698922,0.04,19338.0,19337.0,0.230569]
[1664622699825,1.75661452,19339.0,19337.0,0.230569]
[1664622700004,2.14968778,19339.0,19337.0,0.230569]
[1664622700213,0.07619252,19338.0,19337.0,0.230569]
[1664622700578,1.718422,19339.0,19337.0,0.230569]
[1664622700791,2.11149526,19339.0,19337.0,0.230569]
[1664622701006,1.718422,19339.0,19337.0,0.230569]
[1664622702041,1.680422,19339.0,19337.0,0.230569]
[1664622702792,1.720422,19339.0,19337.0,0.230569]
[1664622703906,1.680422,19339.0,19337.0,0.230569]
[1664622704496,1.720422,19339.0,19337.0,0.230569]
[1664622704938,0.07619252,19338.0,19337.0,0.230569]
[1664622705174,1.720422,19339.0,19337.0,0.230569]
[1664622705963,1.680422,19339.0,19337.0,0.230569]
[1664622706619,1.720422,19339.0,19337.0,0.230569]
[1664622706845,0.3,19338.0,19337.0,0.230569]
[1664622708598,0.04,19338.0,19337.0,0.230569]
[1664622710206,1.680422,19339.0,19337.0,0.230569]
[1664622710460,2.07349526,19339.0,19337.0,0.230569]
[1664622710706,0.04,19338.0,19337.0,0.230569]
[1664622710951,1.4308864,19338.0,19337.0,0.101206]
[1664622711174,1.4308864,19338.0,19337.0,0.001206]
[1664622711175,2.1336304,19338.0,19337.0,0.001206]
[1664622711425,3.0385834,19338.0,19337.0,0.001206]
[1664622711639,5.69559982,19338.0,19337.0,0.001206]
[1664622712051,5.65559982,19338.0,19337.0,0.001206]
[1664622712276,5.66052258,19338.0,19337.0,0.001206]
[1664622712514,5.76052258,19338.0,19337.0,0.001206]
[1664622712731,5.79652258,19338.0,19337.0,0.001206]